[Event "FIDE Women's Grand Swiss 2023"]
[Site "Villa Marina, Douglas, Isle of Man, Isle Of Man"]
[Date "2023.11.03"]
[Round "9.12"]
[White "Fataliyeva, Ulviyya"]
[Black "Muzychuk, Mariya"]
[Result "0-1"]
[TimeControl "40/90 + 30 + 30s/move"]
[WhiteFideId "13403052"]
[BlackFideId "14114550"]
[WhiteElo "2393"]
[BlackElo "2519"]

1. e4 {[%clk 01:30:58]} c5 {[%clk 01:30:53]} {[%emt 00:00:08]} 2. Nf3 {[%clk
01:31:23]} {[%emt 00:00:04]} Nc6 {[%clk 01:31:19]} {[%emt 00:00:04]} 3. Bb5
{[%clk 01:31:49]} {[%emt 00:00:04]} e6 {[%clk 01:31:08]} {[%emt 00:00:41]} 4.
Bxc6 {[%clk 01:32:05]} {[%emt 00:00:14]} bxc6 {[%clk 01:31:08]} {[%emt
00:00:30]} 5. d3 {[%clk 01:32:25]} {[%emt 00:00:10]} Qc7 {[%clk 01:30:27]}
{[%emt 00:01:12]} 6. h4 {[%clk 01:32:50]} {[%emt 00:00:05]} e5 {[%clk
01:27:11]} {[%emt 00:03:47]} 7. h5 {[%clk 01:31:58]} {[%emt 00:01:21]} h6
{[%clk 01:27:15]} {[%emt 00:00:26]} 8. Nbd2 {[%clk 01:31:55]} {[%emt 00:00:33]}
Nf6 {[%clk 01:20:32]} {[%emt 00:07:13]} 9. c4 {[%clk 01:27:39]} {[%emt
00:04:46]} d5 {[%clk 01:19:14]} {[%emt 00:01:49]} 10. Nh4 {[%clk 01:19:12]}
{[%emt 00:08:56]} Bg4 {[%clk 01:12:03]} {[%emt 00:07:41]} 11. f3 {[%clk
01:19:19]} {[%emt 00:00:23]} Bxh5 {[%clk 01:11:56]} {[%emt 00:00:38]} 12. g4
{[%clk 01:15:47]} {[%emt 00:04:02]} Bg6 {[%clk 01:12:09]} {[%emt 00:00:17]} 13.
Nxg6 {[%clk 01:14:12]} {[%emt 00:02:05]} fxg6 {[%clk 01:12:35]} {[%emt
00:00:04]} 14. Qa4 {[%clk 01:12:42]} {[%emt 00:02:00]} d4 {[%clk 01:04:53]}
{[%emt 00:08:13]} 15. Nb3 {[%clk 01:09:41]} {[%emt 00:03:30]} Be7 {[%clk
01:03:22]} {[%emt 00:02:00]} 16. Bd2 {[%clk 01:09:38]} {[%emt 00:00:33]} Nh7
{[%clk 00:57:32]} {[%emt 00:06:21]} 17. f4 {[%clk 01:05:44]} {[%emt 00:04:24]}
exf4 {[%clk 00:56:56]} {[%emt 00:01:07]} 18. Bxf4 {[%clk 01:05:17]} {[%emt
00:00:56]} Qd7 {[%clk 00:57:14]} {[%emt 00:00:13]} 19. O-O-O {[%clk 01:00:42]}
{[%emt 00:05:05]} O-O {[%clk 00:57:27]} {[%emt 00:00:17]} 20. Bd2 {[%clk
00:58:41]} {[%emt 00:02:30]} Ng5 {[%clk 00:44:34]} {[%emt 00:13:24]} 21. Bxg5
{[%clk 00:55:28]} {[%emt 00:03:43]} Bxg5+ {[%clk 00:43:14]} {[%emt 00:01:50]}
22. Kb1 {[%clk 00:55:53]} {[%emt 00:00:05]} Be7 {[%clk 00:36:52]} {[%emt
00:06:51]} 23. Na5 {[%clk 00:50:00]} {[%emt 00:06:22]} Rac8 {[%clk 00:34:01]}
{[%emt 00:03:22]} 24. Rdf1 {[%clk 00:50:06]} {[%emt 00:00:23]} Kh7 {[%clk
00:32:47]} {[%emt 00:01:44]} 25. Rxf8 {[%clk 00:48:14]} {[%emt 00:02:21]} Bxf8
{[%clk 00:21:29]} {[%emt 00:11:50]} 26. Qd1 {[%clk 00:45:15]} {[%emt 00:03:29]}
Bd6 {[%clk 00:21:14]} {[%emt 00:00:45]} 27. Rf1 {[%clk 00:37:57]} {[%emt
00:07:47]} Qe6 {[%clk 00:20:40]} {[%emt 00:01:04]} 28. Qe2 {[%clk 00:36:27]}
{[%emt 00:02:00]} Kg8 {[%clk 00:20:05]} {[%emt 00:01:05]} 29. a3 {[%clk
00:35:59]} {[%emt 00:00:58]} Be5 {[%clk 00:15:43]} {[%emt 00:04:52]} 30. Nb7
{[%clk 00:35:37]} {[%emt 00:00:52]} Qe7 {[%clk 00:14:58]} {[%emt 00:01:15]} 31.
Na5 {[%clk 00:36:02]} {[%emt 00:00:05]} Bd6 {[%clk 00:12:10]} {[%emt 00:03:18]}
32. Ka2 {[%clk 00:34:28]} {[%emt 00:02:03]} Rc7 {[%clk 00:10:28]} {[%emt
00:02:13]} 33. Qf3 {[%clk 00:32:48]} {[%emt 00:02:09]} Qe6 {[%clk 00:10:08]}
{[%emt 00:00:51]} 34. e5 {[%clk 00:25:23]} {[%emt 00:07:55]} Bxe5 {[%clk
00:07:05]} {[%emt 00:03:32]} 35. Qe4 {[%clk 00:24:03]} {[%emt 00:01:50]} Qd6
{[%clk 00:04:01]} {[%emt 00:03:35]} 36. Rf2 {[%clk 00:11:32]} {[%emt 00:13:01]}
Kh7 {[%clk 00:03:26]} {[%emt 00:01:05]} 37. g5 {[%clk 00:11:58]} {[%emt
00:00:04]} h5 {[%clk 00:03:13]} {[%emt 00:00:43]} 38. Rf3 {[%clk 00:08:41]}
{[%emt 00:03:47]} Bg3 {[%clk 00:01:57]} {[%emt 00:01:46]} 39. Qe8 {[%clk
00:05:56]} {[%emt 00:03:15]} Bf4 {[%clk 00:02:18]} {[%emt 00:00:09]} 40. Qa8
{[%clk 00:04:27]} {[%emt 00:01:59]} Qe5 {[%clk 00:01:19]} {[%emt 00:01:29]} 41.
Nxc6 {[%clk 00:20:35]} {[%emt 00:14:23]} Qxg5 {[%clk 00:31:43]} {[%emt
00:00:06]} 42. Nd8 {[%clk 00:19:57]} {[%emt 00:01:08]} Re7 {[%clk 00:25:38]}
{[%emt 00:06:35]} 43. Qc6 {[%clk 00:00:47]} {[%emt 00:19:39]} Re2 {[%clk
00:24:51]} {[%emt 00:01:17]} 44. Qb7 {[%clk 00:01:16]} Qxd8 {[%clk 00:20:24]}
{[%emt 00:04:58]} 45. Rxf4 {[%clk 00:01:45]} {[%emt 00:00:02]} Qb6 {[%clk
00:20:44]} {[%emt 00:00:09]} 46. Qxb6 {[%clk 00:02:03]} {[%emt 00:00:12]} axb6
{[%clk 00:21:11]} {[%emt 00:00:02]} 47. Kb1 {[%clk 00:02:13]} {[%emt 00:00:20]}
g5 {[%clk 00:21:13]} {[%emt 00:00:27]} 48. Rf1 {[%clk 00:02:40]} {[%emt
00:00:04]} g4 {[%clk 00:21:11]} {[%emt 00:00:32]} 49. b4 {[%clk 00:03:08]}
{[%emt 00:00:02]} g3 {[%clk 00:21:13]} {[%emt 00:00:27]} 0-1

[Event "FIDE Women's Grand Swiss 2023"]
[Site "Villa Marina, Douglas, Isle of Man, Isle Of Man"]
[Date "2023.11.03"]
[Round "9.13"]
[White "Paehtz, Elisabeth"]
[Black "Tania, Sachdev"]
[Result "1/2-1/2"]
[TimeControl "40/90 + 30 + 30s/move"]
[WhiteFideId "4641833"]
[BlackFideId "5007844"]
[WhiteElo "2484"]
[BlackElo "2389"]

1. c4 {[%clk 01:30:57]} {[%emt 00:00:02]} e5 {[%clk 01:29:49]} {[%emt
00:01:11]} 2. g3 {[%clk 01:31:22]} {[%emt 00:00:05]} Nf6 {[%clk 01:30:10]}
{[%emt 00:00:09]} 3. Bg2 {[%clk 01:31:48]} {[%emt 00:00:04]} d5 {[%clk
01:29:56]} {[%emt 00:00:44]} 4. cxd5 {[%clk 01:32:14]} {[%emt 00:00:04]} Nxd5
{[%clk 01:30:22]} {[%emt 00:00:04]} 5. Nc3 {[%clk 01:32:41]} {[%emt 00:00:04]}
Nb6 {[%clk 01:30:36]} {[%emt 00:00:15]} 6. Nf3 {[%clk 01:33:08]} {[%emt
00:00:04]} Nc6 {[%clk 01:30:46]} {[%emt 00:00:20]} 7. O-O {[%clk 01:33:32]}
{[%emt 00:00:06]} Be7 {[%clk 01:30:55]} {[%emt 00:00:21]} 8. b3 {[%clk
01:33:59]} {[%emt 00:00:04]} O-O {[%clk 01:28:15]} {[%emt 00:03:08]} 9. Bb2
{[%clk 01:34:26]} {[%emt 00:00:04]} Bg4 {[%clk 01:27:06]} {[%emt 00:01:38]} 10.
Rc1 {[%clk 01:27:48]} {[%emt 00:07:09]} Qd7 {[%clk 01:23:09]} {[%emt 00:04:27]}
11. Ne4 {[%clk 01:22:15]} {[%emt 00:06:03]} f6 {[%clk 01:19:08]} {[%emt
00:04:32]} 12. Nc5 {[%clk 01:20:45]} {[%emt 00:01:59]} Bxc5 {[%clk 01:19:20]}
{[%emt 00:00:17]} 13. Rxc5 {[%clk 01:21:12]} {[%emt 00:00:03]} Rad8 {[%clk
01:04:57]} {[%emt 00:14:54]} 14. Qc2 {[%clk 01:07:57]} {[%emt 00:13:45]} Rfe8
{[%clk 00:49:42]} {[%emt 00:15:44]} 15. d3 {[%clk 01:07:39]} {[%emt 00:00:48]}
Nb4 {[%clk 00:48:34]} {[%emt 00:01:38]} 16. Qb1 {[%clk 01:01:24]} {[%emt
00:06:45]} c6 {[%clk 00:48:01]} {[%emt 00:01:02]} 17. Re1 {[%clk 00:58:35]}
{[%emt 00:03:19]} Nc8 {[%clk 00:35:51]} {[%emt 00:12:41]} 18. a3 {[%clk
00:53:19]} {[%emt 00:05:46]} Nd5 {[%clk 00:34:17]} {[%emt 00:02:04]} 19. b4
{[%clk 00:53:15]} {[%emt 00:00:34]} Nd6 {[%clk 00:30:42]} {[%emt 00:04:05]} 20.
Nd2 {[%clk 00:51:47]} {[%emt 00:01:58]} Nc7 {[%clk 00:28:54]} {[%emt 00:02:18]}
21. Rcc1 {[%clk 00:44:18]} {[%emt 00:07:58]} Bh3 {[%clk 00:27:38]} {[%emt
00:01:47]} 22. Bh1 {[%clk 00:43:26]} {[%emt 00:01:23]} Qf7 {[%clk 00:23:24]}
{[%emt 00:04:44]} 23. a4 {[%clk 00:39:37]} {[%emt 00:04:19]} a6 {[%clk
00:20:11]} {[%emt 00:03:43]} 24. Qc2 {[%clk 00:38:08]} {[%emt 00:01:58]} Nd5
{[%clk 00:17:37]} {[%emt 00:03:05]} 25. Qc5 {[%clk 00:37:13]} {[%emt 00:01:24]}
Nf4 {[%clk 00:16:50]} {[%emt 00:01:16]} 26. Ne4 {[%clk 00:32:33]} {[%emt
00:05:10]} Nxe4 {[%clk 00:15:58]} {[%emt 00:01:22]} 27. Bxe4 {[%clk 00:32:57]}
{[%emt 00:00:06]} Ne6 {[%clk 00:15:57]} {[%emt 00:00:31]} 28. Qc4 {[%clk
00:32:45]} {[%emt 00:00:41]} Ng5 {[%clk 00:14:16]} {[%emt 00:02:12]} 29. Qxf7+
{[%clk 00:32:13]} {[%emt 00:01:02]} Kxf7 {[%clk 00:14:33]} {[%emt 00:00:13]} 30.
Bh1 {[%clk 00:32:24]} {[%emt 00:00:18]} e4 {[%clk 00:08:46]} {[%emt 00:06:18]}
31. dxe4 {[%clk 00:32:50]} {[%emt 00:00:04]} Nxe4 {[%clk 00:08:41]} {[%emt
00:00:35]} 32. Rcd1 {[%clk 00:23:28]} {[%emt 00:09:52]} Rd2 {[%clk 00:03:54]}
{[%emt 00:05:18]} 33. Rxd2 {[%clk 00:22:14]} {[%emt 00:01:44]} Nxd2 {[%clk
00:04:22]} 34. Bc3 {[%clk 00:21:07]} {[%emt 00:01:37]} Ne4 {[%clk 00:03:55]}
{[%emt 00:00:57]} 35. Bd4 {[%clk 00:21:00]} {[%emt 00:00:36]} Nd2 {[%clk
00:02:24]} {[%emt 00:02:02]} 36. f3 {[%clk 00:20:44]} {[%emt 00:00:46]} Be6
{[%clk 00:02:23]} {[%emt 00:00:31]} 37. Kf2 {[%clk 00:11:38]} {[%emt 00:09:36]}
Rd8 {[%clk 00:01:48]} {[%emt 00:01:05]} 1/2-1/2

[Event "FIDE Women's Grand Swiss 2023"]
[Site "Villa Marina, Douglas, Isle of Man, Isle Of Man"]
[Date "2023.11.03"]
[Round "9.14"]
[White "Aulia, Medina Warda"]
[Black "Wagner, Dinara"]
[Result "0-1"]
[TimeControl "40/90 + 30 + 30s/move"]
[WhiteFideId "7101570"]
[BlackFideId "24157570"]
[WhiteElo "2362"]
[BlackElo "2461"]

1. e4 {[%clk 01:30:57]} {[%emt 00:00:03]} c5 {[%clk 01:30:57]} {[%emt
00:00:04]} 2. Nf3 {[%clk 01:31:22]} {[%emt 00:00:04]} d6 {[%clk 01:31:24]}
{[%emt 00:00:04]} 3. Bb5+ {[%clk 01:31:46]} {[%emt 00:00:05]} Bd7 {[%clk
01:31:50]} {[%emt 00:00:04]} 4. Bxd7+ {[%clk 01:32:06]} {[%emt 00:00:10]} Qxd7
{[%clk 01:32:16]} {[%emt 00:00:04]} 5. O-O {[%clk 01:32:20]} {[%emt 00:00:15]}
Nc6 {[%clk 01:32:17]} {[%emt 00:00:29]} 6. Qe2 {[%clk 01:31:36]} {[%emt
00:01:15]} g6 {[%clk 01:28:42]} {[%emt 00:04:05]} 7. c3 {[%clk 01:31:21]}
{[%emt 00:00:44]} Bg7 {[%clk 01:29:05]} {[%emt 00:00:06]} 8. Rd1 {[%clk
01:31:24]} {[%emt 00:00:28]} Rc8 {[%clk 01:09:50]} {[%emt 00:19:45]} 9. h3
{[%clk 01:22:55]} {[%emt 00:08:58]} Nf6 {[%clk 01:02:43]} {[%emt 00:07:38]} 10.
d4 {[%clk 01:20:11]} {[%emt 00:03:14]} cxd4 {[%clk 01:02:25]} {[%emt 00:00:48]}
11. cxd4 {[%clk 01:20:35]} {[%emt 00:00:06]} d5 {[%clk 01:02:54]} {[%emt
00:00:02]} 12. e5 {[%clk 01:20:48]} {[%emt 00:00:16]} Ne4 {[%clk 01:03:20]}
{[%emt 00:00:03]} 13. Be3 {[%clk 01:18:25]} {[%emt 00:02:54]} O-O {[%clk
01:01:46]} {[%emt 00:02:04]} 14. Nbd2 {[%clk 01:17:50]} {[%emt 00:01:05]} Nxd2
{[%clk 01:00:05]} {[%emt 00:02:11]} 15. Bxd2 {[%clk 01:15:36]} {[%emt
00:02:44]} Nd8 {[%clk 00:54:30]} {[%emt 00:06:06]} 16. Bc3 {[%clk 01:14:52]}
{[%emt 00:01:13]} Ne6 {[%clk 00:53:58]} {[%emt 00:01:02]} 17. Qe3 {[%clk
01:14:39]} {[%emt 00:00:43]} Rc6 {[%clk 00:49:43]} {[%emt 00:04:46]} 18. h4
{[%clk 01:14:32]} {[%emt 00:00:36]} h5 {[%clk 00:47:55]} {[%emt 00:02:18]} 19.
Kh2 {[%clk 01:06:16]} {[%emt 00:08:44]} Rfc8 {[%clk 00:38:52]} {[%emt
00:09:35]} 20. Rg1 {[%clk 01:03:06]} {[%emt 00:03:40]} Nc7 {[%clk 00:37:26]}
{[%emt 00:01:56]} 21. a4 {[%clk 01:01:22]} {[%emt 00:02:14]} Qg4 {[%clk
00:28:34]} {[%emt 00:09:22]} 22. Rge1 {[%clk 00:56:36]} {[%emt 00:05:16]} Ne6
{[%clk 00:27:35]} {[%emt 00:01:28]} 23. g3 {[%clk 00:56:49]} {[%emt 00:00:16]}
Rc4 {[%clk 00:13:52]} {[%emt 00:14:13]} 24. Kg2 {[%clk 00:54:54]} {[%emt
00:02:25]} b6 {[%clk 00:13:59]} {[%emt 00:00:24]} 25. Nd2 {[%clk 00:42:55]}
{[%emt 00:12:29]} R4c6 {[%clk 00:14:17]} {[%emt 00:00:12]} 26. Qf3 {[%clk
00:38:10]} {[%emt 00:05:15]} Qxf3+ {[%clk 00:12:28]} {[%emt 00:02:20]} 27. Nxf3
{[%clk 00:37:53]} {[%emt 00:00:47]} Bh6 {[%clk 00:12:48]} {[%emt 00:00:10]} 28.
Red1 {[%clk 00:36:36]} {[%emt 00:01:46]} Rc4 {[%clk 00:12:31]} {[%emt
00:00:48]} 29. Ne1 {[%clk 00:35:57]} {[%emt 00:01:08]} Ng7 {[%clk 00:06:57]}
{[%emt 00:06:04]} 30. Nc2 {[%clk 00:34:03]} {[%emt 00:02:25]} Nf5 {[%clk
00:07:24]} {[%emt 00:00:04]} 31. Ra3 {[%clk 00:30:45]} {[%emt 00:03:47]} e6
{[%clk 00:07:10]} {[%emt 00:00:44]} 32. Rda1 {[%clk 00:29:43]} {[%emt
00:01:32]} a5 {[%clk 00:04:44]} {[%emt 00:02:55]} 33. Rb3 {[%clk 00:29:57]}
{[%emt 00:00:16]} R8c6 {[%clk 00:04:54]} {[%emt 00:00:20]} 34. Kf1 {[%clk
00:29:34]} {[%emt 00:00:53]} Bd2 {[%clk 00:02:03]} {[%emt 00:03:21]} 35. Raa3
{[%clk 00:25:11]} {[%emt 00:04:54]} Kf8 {[%clk 00:00:46]} {[%emt 00:01:47]} 36.
Ke2 {[%clk 00:25:29]} {[%emt 00:00:12]} Bh6 {[%clk 00:00:41]} {[%emt 00:00:35]}
37. Kd3 {[%clk 00:24:32]} {[%emt 00:01:26]} Ke8 {[%clk 00:00:43]} {[%emt
00:00:29]} 38. Ra1 {[%clk 00:19:45]} {[%emt 00:05:16]} Kd7 {[%clk 00:01:09]}
{[%emt 00:00:04]} 39. Ra2 {[%clk 00:17:32]} {[%emt 00:02:43]} Kc8 {[%clk
00:00:47]} {[%emt 00:00:52]} 40. Ra1 {[%clk 00:17:55]} {[%emt 00:00:07]} Kb7
{[%clk 00:00:51]} {[%emt 00:00:26]} 41. Ne1 {[%clk 00:14:10]} {[%emt 00:04:15]}
Ka6 {[%clk 00:30:05]} {[%emt 00:01:17]} 42. Nc2 {[%clk 00:40:02]} {[%emt
00:04:37]} Rc8 {[%clk 00:29:55]} {[%emt 00:00:40]} 43. Ne1 {[%clk 00:39:52]}
{[%emt 00:00:40]} Rd8 {[%clk 00:22:15]} {[%emt 00:08:10]} 44. Nf3 {[%clk
00:38:54]} {[%emt 00:01:28]} Rg8 {[%clk 00:22:03]} {[%emt 00:00:41]} 45. Rb5
{[%clk 00:37:43]} {[%emt 00:01:41]} Rgc8 {[%clk 00:15:08]} {[%emt 00:07:25]} 46.
Ra2 {[%clk 00:36:39]} {[%emt 00:01:34]} Ne7 {[%clk 00:15:19]} {[%emt 00:00:18]}
47. Ra1 {[%clk 00:33:16]} {[%emt 00:03:53]} Nc6 {[%clk 00:14:19]} {[%emt
00:01:31]} 48. Rb3 {[%clk 00:33:16]} {[%emt 00:00:30]} Nb4+ {[%clk 00:13:14]}
{[%emt 00:01:35]} 49. Ke2 {[%clk 00:33:41]} {[%emt 00:00:05]} Nc2 {[%clk
00:13:06]} {[%emt 00:00:38]} 50. Ra2 {[%clk 00:34:02]} {[%emt 00:00:09]} R8c7
{[%clk 00:12:25]} {[%emt 00:01:11]} 51. Kd1 {[%clk 00:33:05]} {[%emt 00:01:26]}
Nb4 {[%clk 00:12:18]} {[%emt 00:00:37]} 52. Ra1 {[%clk 00:31:29]} {[%emt
00:02:06]} Nd3 {[%clk 00:11:49]} {[%emt 00:01:00]} 53. Ke2 {[%clk 00:31:52]}
{[%emt 00:00:07]} Nc1+ {[%clk 00:11:48]} {[%emt 00:00:30]} 54. Rxc1 {[%clk
00:31:40]} {[%emt 00:00:43]} Bxc1 {[%clk 00:12:15]} {[%emt 00:00:03]} 55. Kd1
{[%clk 00:32:07]} {[%emt 00:00:02]} Bh6 {[%clk 00:12:31]} {[%emt 00:00:15]} 56.
Ra3 {[%clk 00:32:16]} {[%emt 00:00:22]} Bf8 {[%clk 00:12:23]} {[%emt 00:00:36]}
57. Ra1 {[%clk 00:32:02]} {[%emt 00:00:44]} Bb4 {[%clk 00:12:50]} {[%emt
00:00:03]} 58. Nd2 {[%clk 00:32:10]} {[%emt 00:00:22]} Bxc3 {[%clk 00:12:09]}
{[%emt 00:01:11]} 59. Nxc4 {[%clk 00:32:31]} {[%emt 00:00:09]} Bxd4 {[%clk
00:12:33]} {[%emt 00:00:05]} 60. Nd2 {[%clk 00:30:17]} {[%emt 00:02:44]} Bxb2
{[%clk 00:12:43]} {[%emt 00:00:21]} 61. Rb1 {[%clk 00:30:44]} {[%emt 00:00:03]}
Bxe5 {[%clk 00:13:10]} {[%emt 00:00:03]} 62. Rb3 {[%clk 00:29:05]} {[%emt
00:02:10]} Rc3 {[%clk 00:13:23]} {[%emt 00:00:16]} 63. Ke2 {[%clk 00:29:13]}
{[%emt 00:00:22]} Rc2 {[%clk 00:13:01]} {[%emt 00:00:52]} 64. Kd1 {[%clk
00:29:05]} {[%emt 00:00:38]} Ra2 {[%clk 00:11:52]} {[%emt 00:01:38]} 65. Rf3
{[%clk 00:29:31]} {[%emt 00:00:05]} f6 {[%clk 00:11:48]} {[%emt 00:00:34]} 66.
Re3 {[%clk 00:29:58]} {[%emt 00:00:03]} d4 {[%clk 00:10:41]} {[%emt 00:01:37]}
67. Re4 {[%clk 00:30:25]} {[%emt 00:00:03]} d3 {[%clk 00:11:09]} {[%emt
00:00:03]} 0-1